Cogmind - Beta 14 @@@ ROGUE MODE // 2025.03.22 @ 19:23:47 Player: Leha44581 Result: Destroyed by G-34 Mercenary with Small Laser Performance ------------- Evolutions (1) 500 Regions Visited (2) 400 Robots Destroyed (13) 65 Value Destroyed (372) 372 Prototype IDs (3) 60 Alien Tech Used (0) 0 Bonus (0) 0 TOTAL SCORE: 1397 Bonus ------- None Cogmind --------- Core Integrity 0/400 Matter 281/300 Energy 99/100 System Corruption 0% Temperature Cool (6) Movement Core (100) Ox1 Location -9/Materials Parts ------- > --- POWER (1) -------- (None) > --- PROPULSION (3) --- (None) > --- UTILITY (2) ------ Small Storage Unit > --- WEAPON (3) ------- (None) > --- INVENTORY (8) ---- High-capacity Storage Unit Small Matter Pod (50) Light Armor Plating Peak State ------------ > --- POWER ------------ Ion Engine > --- PROPULSION ------- Light Treads Light Treads > --- UTILITY ---------- Small Storage Unit Large Matter Pod > --- WEAPON ----------- EM Pulse Gun EM Pulse Gun > --- INVENTORY -------- Light Nuclear Core High-capacity Storage Unit Small Matter Pod Light Armor Plating EM Pulse Gun EM Pulse Gun Medium Laser Assault Rifle [Rating: 8] Favorites ----------- Power Ion Engine Engine Ion Engine Power Core Light Nuclear Core Propulsion Light Treads Treads Light Treads Utility Small Storage Unit Device Heat Sink Storage Small Storage Unit Weapon EM Pulse Gun Energy Gun EM Pulse Gun Ballistic Gun Assault Rifle Build | -11 -10 -9 ------- Run | Yrd Mat Mat Slots Evolved 2 | . . 2 Power . | . . . Propulsion 1 | . . 1 Utility . | . . . Weapon 1 | . . 1 Parts Attached 20 | 6 13 1 Power 3 | 1 1 1 Engine 2 | 1 . 1 Core 1 | . 1 . Reactor . | . . . Propulsion 2 | 2 . . Treads 2 | 2 . . Leg . | . . . Wheel . | . . . Hover . | . . . Flight . | . . . Utility 7 | 1 6 . Device 1 | . 1 . Storage 6 | 1 5 . Processor . | . . . Hackware . | . . . Protection . | . . . Artifact . | . . . Weapon 8 | 2 6 . Energy Gun 7 | 1 6 . Energy Cannon . | . . . Ballistic Gun 1 | 1 . . Ballistic Cannon . | . . . Launcher . | . . . Special Weapon . | . . . Impact Weapon . | . . . Slashing Weapon . | . . . Piercing Weapon . | . . . Special Melee Weapon . | . . . Unidentified Prototypes . | . . . Parts Lost 12 | . 8 4 Power 3 | . 1 2 Propulsion 2 | . 2 . Utility 1 | . . 1 Weapon 6 | . 5 1 Highest Loss Streak 6 | . 6 4 To Critical Strikes . | . . . Average Slot Usage (%) 73 | . 87 27 Engine 9 | . 12 . Core 2 | . 1 5 Treads 18 | . 24 . Device 2 | . . 6 Storage 18 | . 21 11 Energy Gun 18 | . 22 4 Ballistic Gun 3 | . 3 . Peak Build Rating 8 | 6 8 6 Average Rating 5 | 5 6 3 On Entrance 4 | . 6 6 Naked Turns . | . . . Heaviest Build 17 | 14 17 13 Greatest Support 40 | 40 40 3 Greatest Overweight (x) 4 | . 4 4 Average Overweight (x) . | . . 1 Largest Inventory Capacity 20 | 8 20 8 Average Capacity 8 | 7 8 8 Most Carried 8 | . 8 3 Average Carried 3 | . 4 3 Final Capacity 8 | 8 8 8 Final Carried 3 | . 3 3 Class Distribution -------------------- 100% | Mutant Dominant Class ---------------- Mutant | -10/Materials Mutant | -9/Materials Resources | -11 -10 -9 ----------- Run | Yrd Mat Mat Matter Collected 508 | 260 212 36 Remotely . | . . . Salvage Created 525 | . 509 16 Parts 29 | . 26 3 Haulers Intercepted . | . . . Recyclers Shooed . | . . . Parts Field Recycled . | . . . Retrieved Matter . | . . . Parts Self-Destructed . | . . . Prevented . | . . . Kills | -11 -10 -9 ------- Run | Yrd Mat Mat Combat Hostiles Destroyed 9 | . 9 . Guns 6 | . 6 . AOE 1 | . 1 . Classes Destroyed 4 | . 3 1 Builder 1 | . . 1 Recycler 1 | . 1 . Watcher 2 | . 2 . Grunt 9 | . 9 . Best Kill Streak 4 | . 4 1 Combat Bots Only 4 | . 4 . Max Kills in Single Turn 2 | . 2 1 Gunslinging 1 | . 1 . Exploded 1 | . 1 . Melee . | . . . Uniques/NPCs Destroyed . | . . . Combat | -11 -10 -9 -------- Run | Yrd Mat Mat Hostile Shots Fired 217 | . 102 115 Missed 78 | . 29 49 Damage Taken 1391 | . 811 580 Core 557 | . 155 402 Absorbed by Shields . | . . . Core Remaining (%) 69 | 100 38 . Volleys Fired 46 | . 46 . Largest 2 | . 2 . Hottest 90 | . 90 . Shots Fired 77 | . 77 . Gun 77 | . 77 . Cannon . | . . . Launcher . | . . . Special . | . . . Kinetic . | . . . Thermal 16 | . 16 . Explosive . | . . . Electromagnetic 61 | . 61 . Robot Hit Streak 9 | . 9 . Robot Miss Streak 4 | . 4 . Penetration Max . | . . . Secondary Targets 3 | . 3 . Max Gunslinging Chain 1 | . 1 . Shots Hit Robots 51 | . 51 . Core Hits 28 | . 22 6 Critical Kills . | . . . Critical Parts Destroyed . | . . . Critical Strikes 5 | . 5 . Burn 3 | . 3 . Corrupt 2 | . 2 . Melee Attacks . | . . . Impact . | . . . Slashing . | . . . Piercing . | . . . Sneak Attacks . | . . . Combat Hostiles . | . . . Follow-up Attacks . | . . . Damage Inflicted 867 | . 836 31 Guns 724 | . 724 . Cannons . | . . . Explosions 112 | . 112 . Melee . | . . . Ramming 31 | . . 31 Kinetic . | . . . Thermal 225 | . 225 . Explosive . | . . . Electromagnetic 611 | . 611 . Impact . | . . . Slashing . | . . . Piercing . | . . . Highest Corruption . | . . . Average Corruption . | . . . Corruption Purged . | . . . Corruption Blocked . | . . . Overload Shots . | . . . Overflow Damage . | . . . Projectiles . | . . . Explosions . | . . . Melee . | . . . Knockbacks . | . . . Impact . | . . . Kinetic . | . . . Secondary . | . . . Self-Inflicted Damage 14 | . . 14 Shots . | . . . Rammed 9 | . . 9 Targets Rammed 9 | . . 9 Kicked . | . . . Crushed . | . . . Highest Temperature 461 | . 461 . Average Temperature 171 | . 171 . Received Heat Transfer 486 | . 450 36 Effects 12 | . 12 . Shutdowns 4 | . 4 . Energy Bleed 1 | . 1 . Interference 2 | . 2 . Matter Decay 2 | . 2 . Short Circuit 1 | . 1 . Damage (minor) 1 | . 1 . Damage (major) 1 | . 1 . Siege Activations . | . . . Robots Corrupted 1 | . 1 . Combat Hostiles 1 | . 1 . Parts Fried 7 | . 7 . Impact Corruptions . | . . . Robots Melted 1 | . 1 . Combat Hostiles 1 | . 1 . Parts Melted 2 | . 2 . Heat Transferred 705 | . 705 . Parts Sabotaged . | . . . Parts Stolen . | . . . Parts Stripped . | . . . Power Chain Reactions 2 | . 2 . Alert | -11 -10 -9 ------- Run | Yrd Mat Mat Peak Influence 221 | . 221 159 Initial 29 | . . 29 Average 79 | . 81 110 Maximum Alert Level 1 | . 1 . Low Security (%) 93 | 100 90 100 Level 1 6 | . 9 . Level 2 . | . . . Level 3 . | . . . Level 4 . | . . . Level 5 . | . . . High Security . | . . . Max Security . | . . . Squads Dispatched 3 | . 2 1 Investigation 1 | . 1 . Extermination . | . . . Reinforcement 2 | . 1 1 Assault . | . . . Garrison . | . . . Intercept . | . . . Searches Triggered . | . . . Construction Impeded . | . . . Haulers Reinforced . | . . . Active Scanning Responses . | . . . Cargo Convoy Interrupts . | . . . Stealth | -11 -10 -9 --------- Run | Yrd Mat Mat Distress Signals 4 | . 3 1 Communications Jammed . | . . . Distress Signals . | . . . Times Spotted 31 | . 17 14 Peak Tracking Total 10 | . 5 10 Tactical Retreats 3 | . 1 2 Traps | -11 -10 -9 ------- Run | Yrd Mat Mat Traps Triggered 1 | . 1 . Indirectly . | . . . Trap Hack Attempts . | . . . Triggered . | . . . Disarmed . | . . . Reprogrammed . | . . . Reused . | . . . Traps Extracted . | . . . Installed . | . . . Triggered . | . . . Machines | -11 -10 -9 ---------- Run | Yrd Mat Mat Machines Disabled 1 | . 1 . Max in Single Turn 1 | . 1 . Machines Repaired . | . . . Machines Dismantled . | . . . Machines Sabotaged . | . . . Overloaded Fab Kills . | . . . Hacking | -11 -10 -9 --------- Run | Yrd Mat Mat Machines Accessed 3 | . 3 . Terminals 2 | . 2 . Fabricators . | . . . Repair Stations . | . . . Recycling Units 1 | . 1 . Scanalyzers . | . . . Garrison Access . | . . . Total Hacks 5 | . 5 . Successful 4 | . 4 . Failed 1 | . 1 . Catastrophic . | . . . Database Lockouts . | . . . Manual . | . . . Terminals 3 | . 3 . Fabricators . | . . . Repair Stations . | . . . Recycling Units 2 | . 2 . Scanalyzers . | . . . Garrison Access . | . . . Terminal Hacks 2 | . 2 . Prototype ID Bank 2 | . 2 . Fabricator Hacks . | . . . Repair Station Hacks . | . . . Recycling Unit Hacks 2 | . 2 . Report Inventory 1 | . 1 . Retrieve Components 1 | . 1 . Scanalyzer . | . . . Garrison Access Hacks . | . . . Unauthorized Hacks . | . . . Terminals . | . . . Fabricators . | . . . Repair Stations . | . . . Recycling Units . | . . . Scanalyzers . | . . . Garrison Access . | . . . Data Cores Recovered . | . . . Used . | . . . Hacking Detections . | . . . Full Trace Events . | . . . Feedback Events . | . . . Feedback Blocked . | . . . Robot Schematics Acquired . | . . . Robots Built . | . . . Authchips . | . . . Time . | . . . Total Robot Build Rating . | . . . Part Schematics Acquired . | . . . Parts Built . | . . . Authchips . | . . . Time . | . . . Total Part Build Rating . | . . . Parts Repaired . | . . . Time . | . . . Parts Recycled . | . . . Recycled Matter . | . . . Retrieved Matter . | . . . Retrieved Components 2 | . 2 . Parts Scanalyzed . | . . . Part Schematics Acquired . | . . . Parts Damaged . | . . . Bothacking | -11 -10 -9 ------------ Run | Yrd Mat Mat Used RIF Installer . | . . . Robots Hacked . | . . . Non-combat . | . . . Combat . | . . . Robot Hacks Applied . | . . . Relay Couplers Released . | . . . Fabnet Peak Effective % . | . . . Robots Rewired . | . . . Allies Hacked . | . . . Hacks Repelled . | . . . Allies | -11 -10 -9 -------- Run | Yrd Mat Mat Total Allies . | . . . Largest Group . | . . . Highest-Rated Group . | . . . Highest-Rated Ally . | . . . Total Orders . | . . . Ally Attacks . | . . . Total Damage . | . . . Kills . | . . . Allies Corrupted . | . . . Allies Melted . | . . . Intel | -11 -10 -9 ------- Run | Yrd Mat Mat Robot Analysis Total . | . . . Derelict Logs Recovered . | . . . Drone Launches . | . . . Drone Recoveries . | . . . Exploration | -11 -10 -9 ------------- Run | Yrd Mat Mat Turns Passed 725 | 71 507 147 Spaces Moved 357 | 41 217 99 Core 114 | 2 13 99 Treads 243 | 39 204 . Legs . | . . . Wheels . | . . . Hover . | . . . Flight . | . . . Fastest Speed 50 | 50 160 100 Average Speed 156 | 154 165 138 Slowest Speed 250 | 160 250 250 Overloaded Moves . | . . . Propulsion Burnouts . | . . . Robots Hopped . | . . . Cave-ins Triggered . | . . . Exploration Rate (%) 17 | 3 35 15 Regions Visited 2 Branch Regions . Pre-discovered Areas . | . . . Known Exits Taken . | . . . Unknown Exits Taken 2 | 1 1 . Scrap Searched . | . . . Spaces Dug . | . . . Terrain Destroyed 7 | . 7 . Melee . | . . . Projectile . | . . . AOE 7 | . 7 . Terrain Rammed . | . . . Walls Destroyed . | . . . Machines Disabled . | . . . Actions | -11 -10 -9 --------- Run | Yrd Mat Mat Total 447 | 46 292 109 Wait . | . . . Move 355 | 40 216 99 Hop . | . . . Pick Up 8 | . 8 . Fast Attach 11 | 6 4 1 Attach 9 | . 9 . Detach 6 | . 6 . Swap . | . . . Drop 3 | . 3 . Fire 46 | . 46 . Melee . | . . . Ram 9 | . . 9 Kick . | . . . Crush . | . . . Escape Stasis . | . . . Rewire . | . . . Trap . | . . . Miscellaneous . | . . . Route ------- -11/Scrapyard -10/Materials -9/Materials History --------- Turn | Location | Event 24 | -11/Scrapyard | Discovered new exit (range 14) 72 | -11/Scrapyard | Entered Materials 306 | -10/Materials | Build established: Mutant 519 | -10/Materials | Core integrity fell below 50% 554 | -10/Materials | Discovered new exit (range 12) 555 | -10/Materials | Lost 6 parts (1p2n3w) 579 | -10/Materials | Entered another Materials area 579 | -9/Materials | Evolved 2 slots: Propulsion x1, Weapon x1 678 | -9/Materials | Core integrity fell below 50% 697 | -9/Materials | Lost 4 parts (2p1u1w) 710 | -9/Materials | Core integrity fell below 20% 726 | -9/Materials | Destroyed by G-34 Mercenary with Small Laser Last Messages --------------- 00625_ U-05 Engineer lays Concrete. 00632_ Med. Laser destroyed. 00641_ Lgt. Nuclear Core destroyed. 00657_ Slammed into S-10 Pest. 00657_ Destabilizing: Core damaged (-12). 00657_ S-10 Pest destroyed. 00658_ Acquired 20 matter. 00660_ Acquired Lgt. Ion Engine. 00665_ Lgt. Ion Engine destroyed. 00666_ Heat Sink destroyed. 00668_ S-10 Pest destroyed. 00683_ Slammed into U-05 Engineer. 00683_ U-05 Engineer destroyed. 00684_ Acquired 16 matter. 00685_ Slammed into A-02 Transporter. 00685_ Destabilizing: Core damaged (-12). 00686_ Slammed into A-02 Transporter. 00689_ Slammed into T-07 Excavator. 00705_ S-10 Pest destroyed. 00706_ Slammed into S-10 Pest. Map ----- +----------------------------------------------------+ | ????????????????????????????????? | | ????????????????????????????????? | | ????????????????????????????????? | | ????????????????????????????????? | | ????????????????????????????????? | | ???????????????? ??????????????? | | ??????????????# ??????????????? | | ??????????????# ??????????????? | | ??????????????+ ??????????????? | | ??????????????# ??????????????? | | ??????????????# ??????????????? | | ??????????????# ??????????????? | | ??????????????# ############??? | | ??????????????# ???? | | ??????????????# #???? | | ??????????????+ T #???? | | ??????????????# #?### | | ??????????????# """ #? ! | | ??????????????# """ # ! | | ????????????????# """ # ! | | ????????????????# + | | ????????????????# # | | ?????##########?# ####### # | | ?????# s s #?#|#?????# #?### | | ?????# s #?#!#?????# #???? | | ?????# @ """ #?# #?????# #???? | | ?????# g"""""#?#=#?????# #???? | | ?????# """""#?# #?????# #???? | | ?????# """""#?# #?????#*%=#???? | | ?????# Y""" #?# #?????# #???? | | ?????# #?# #?????# ##### | | ?????# #?# ####??# | | ??#########+##### #??######### | | ??# # T" #?????????? | | ??# # % " #????????# | | ??# """ + ##### #????????# | | ??# """ # #???##+###????????# | | ??# """ # #?????????????????# | | ??# ####?????????????????# | | ??########????????????????????### | | ????????????????????????????????? | | ????????????????????????????????? | | ????????????????????????????????? | | ????????????????????????????????? | | ????????????????????????????????? | | ????????????????????????????????? | | ????????????????????????????????? | | ????????????????????????????????? | | | | | +----------------------------------------------------+ Best States ------------- Heat Dissipation 38 Energy Generation 14 Energy Capacity 250 Matter Stores 382 Matter Capacity 450 Sight Range 16 Terrain Scan Density 10 Evasion (%) 40 Recoil Reduction 2 Item Schematics ----------------- None Robot Schematics ------------------ None Fabricated ------------ Nothing Alien Tech Used ----------------- None Achievements -------------- It's Just You Power Corrupts Challenges ------------ None Game ------ Seed ShockDecoderOptics Manual? 0 Play Time 00:12:56 Cumulative 4.1 hours Start 2025.03.22 @ 19:06:05 End 2025.03.22 @ 19:23:47 Sessions 1 Manual Loads 0 Difficulty Rogue Special Mode None Game No. 8 Rogue 8 Adventurer 0 Explorer 0 Win Type - Total 0 Types 0/0/0/0/0/0/0/0/0 Lore% 4 Gallery% 10 Achievement% 11 Wizard Run 0 Options --------- Layout 2 ASCII 0 Keyboard 1 Movement Numpad Keybinds 0 Fullscreen 2 Font 20/SmallcapsGlow Map View 54x51 Zoom Use 0% Tactical HUD 1 Map Filters NONE Filters NONE Steam 1 RUN: 31b79c53-74c9-46dd-89ca-b358ea8d8653